[Event "Open International Liffre 2019"]
[Site "Liffre"]
[Date "2019.10.19"]
[Round "1.1"]
[White "Nikolov, Momchil"]
[Black "Aumont, Alexandre"]
[Result "1-0"]
[TimeControl "1h30 + 30s/coup + 30 min /40 Coup"]
[WhiteTitle "GM"]
[WhiteElo "2557"]
[BlackElo "2221"]

1. d4 {[%clk 01:30:56]} {[%emt 00:00:04]} f5 {[%clk 01:30:53]} {[%emt
00:00:08]} 2. Nf3 {[%clk 01:30:57]} {[%emt 00:00:27]} Nf6 {[%clk 01:31:17]}
{[%emt 00:00:07]} 3. g3 {[%clk 01:30:53]} {[%emt 00:00:33]} g6 {[%clk
01:31:41]} {[%emt 00:00:07]} 4. c4 {[%clk 01:30:25]} {[%emt 00:00:58]} Bg7
{[%clk 01:31:59]} {[%emt 00:00:12]} 5. b4 {[%clk 01:30:47]} {[%emt 00:00:09]}
O-O {[%clk 01:31:49]} {[%emt 00:00:40]} 6. Bb2 {[%clk 01:31:08]} {[%emt
00:00:08]} a6 {[%clk 01:12:29]} {[%emt 00:19:51]} 7. Nc3 {[%clk 01:26:15]}
{[%emt 00:05:22]} d6 {[%clk 01:02:02]} {[%emt 00:10:57]} 8. Bg2 {[%clk
01:26:12]} {[%emt 00:00:32]} Qe8 {[%clk 00:58:03]} {[%emt 00:04:30]} 9. O-O
{[%clk 01:21:21]} {[%emt 00:05:20]} b5 {[%clk 00:52:04]} {[%emt 00:06:30]} 10.
cxb5 {[%clk 01:10:13]} {[%emt 00:11:37]} axb5 {[%clk 00:52:25]} {[%emt
00:00:10]} 11. d5 {[%clk 01:09:37]} {[%emt 00:01:05]} Ne4 {[%clk 00:33:05]}
{[%emt 00:19:51]} 12. Nd4 {[%clk 00:59:05]} {[%emt 00:11:01]} Nxc3 {[%clk
00:33:23]} {[%emt 00:00:13]} 13. Bxc3 {[%clk 00:59:29]} {[%emt 00:00:05]} Ra6
{[%clk 00:28:51]} {[%emt 00:05:03]} 14. Qd3 {[%clk 00:57:37]} {[%emt 00:02:22]}
Bd7 {[%clk 00:29:06]} {[%emt 00:00:15]} 15. Rfc1 {[%clk 00:53:23]} {[%emt
00:04:43]} f4 {[%clk 00:22:06]} {[%emt 00:07:31]} 16. Nb3 {[%clk 00:41:51]}
{[%emt 00:12:01]} Bxc3 {[%clk 00:18:19]} {[%emt 00:04:19]} 17. Rxc3 {[%clk
00:41:57]} {[%emt 00:00:23]} c6 {[%clk 00:14:21]} {[%emt 00:04:28]} 18. dxc6
{[%clk 00:40:21]} {[%emt 00:02:06]} Bxc6 {[%clk 00:14:41]} {[%emt 00:00:10]} 19.
Bxc6 {[%clk 00:38:41]} {[%emt 00:02:10]} Rxc6 {[%clk 00:15:07]} {[%emt
00:00:04]} 20. Rac1 {[%clk 00:37:17]} {[%emt 00:01:53]} Rxc3 {[%clk 00:14:19]}
{[%emt 00:01:19]} 21. Rxc3 {[%clk 00:37:39]} {[%emt 00:00:08]} fxg3 {[%clk
00:13:42]} {[%emt 00:01:07]} 22. hxg3 {[%emt 00:02:47]} Qf7 {[%clk 00:11:24]}
{[%emt 00:00:20]} 23. f3 {[%clk 00:37:23]} Qf5 {[%clk 00:04:04]} {[%emt
00:08:47]} 24. Qxf5 {[%clk 00:34:59]} Rxf5 {[%clk 00:04:04]} 25. Nd4 {[%clk
00:34:59]} Rd5 {[%clk 00:04:04]} 1-0

[ePGN "0.1;DGT LiveChess/2.1"]

[Event "Open International Liffre 2019"]
[Site "Liffre"]
[Date "2019.10.19"]
[Round "1.2"]
[White "Besson, Bastien"]
[Black "Bailet, Pierre"]
[Result "1/2-1/2"]
[TimeControl "1h30 + 30s/coup + 30 min /40 Coup"]
[BlackTitle "IM"]
[WhiteElo "2200"]
[BlackElo "2493"]

1. e4 {[%clk 01:30:56]} {[%emt 00:00:03]} c5 {[%clk 01:30:33]} {[%emt
00:00:27]} 2. Nf3 {[%clk 01:30:58]} {[%emt 00:00:29]} Nc6 {[%clk 01:30:28]}
{[%emt 00:00:35]} 3. d4 {[%clk 01:31:15]} {[%emt 00:00:13]} cxd4 {[%clk
01:30:46]} {[%emt 00:00:12]} 4. Nxd4 {[%clk 01:31:32]} {[%emt 00:00:13]} Nf6
{[%clk 01:29:22]} {[%emt 00:01:53]} 5. Nc3 {[%clk 01:29:20]} {[%emt 00:02:43]}
e5 {[%clk 01:29:41]} {[%emt 00:00:09]} 6. Ndb5 {[%clk 01:29:35]} {[%emt
00:00:17]} d6 {[%clk 01:30:00]} {[%emt 00:00:10]} 7. Bg5 {[%clk 01:29:51]}
{[%emt 00:00:15]} a6 {[%clk 01:30:19]} {[%emt 00:00:10]} 8. Na3 {[%clk
01:30:17]} {[%emt 00:00:05]} b5 {[%clk 01:30:40]} {[%emt 00:00:08]} 9. Nd5
{[%clk 01:30:43]} {[%emt 00:00:05]} Be7 {[%clk 01:31:01]} {[%emt 00:00:08]} 10.
Bxf6 {[%clk 01:31:07]} {[%emt 00:00:06]} Bxf6 {[%clk 01:31:24]} {[%emt
00:00:07]} 11. c4 {[%clk 01:31:33]} {[%emt 00:00:05]} b4 {[%clk 01:31:31]}
{[%emt 00:00:22]} 12. Nc2 {[%clk 01:31:52]} {[%emt 00:00:12]} O-O {[%clk
01:31:33]} {[%emt 00:00:27]} 13. g3 {[%clk 01:29:12]} {[%emt 00:03:11]} a5
{[%clk 01:31:23]} {[%emt 00:00:38]} 14. Bg2 {[%clk 01:29:31]} {[%emt 00:00:12]}
Bg5 {[%clk 01:30:45]} {[%emt 00:01:08]} 15. O-O {[%clk 01:29:53]} {[%emt
00:00:09]} Ne7 {[%clk 01:30:46]} {[%emt 00:00:27]} 16. h4 {[%clk 01:28:04]}
{[%emt 00:02:20]} Bh6 {[%clk 01:28:16]} {[%emt 00:02:59]} 17. Nce3 {[%clk
01:27:15]} {[%emt 00:01:21]} Nxd5 {[%clk 01:24:31]} {[%emt 00:04:14]} 18. Nxd5
{[%clk 01:19:24]} {[%emt 00:08:21]} Be6 {[%clk 01:18:21]} {[%emt 00:06:39]} 19.
Qd3 {[%clk 01:17:51]} {[%emt 00:02:04]} Rc8 {[%clk 01:12:47]} {[%emt 00:06:04]}
20. b3 {[%clk 01:17:46]} {[%emt 00:00:36]} g6 {[%clk 01:08:06]} {[%emt
00:05:10]} 21. Rfd1 {[%clk 01:16:09]} {[%emt 00:02:07]} Rc5 {[%clk 00:57:21]}
{[%emt 00:11:15]} 22. Ne3 {[%clk 01:15:40]} {[%emt 00:01:00]} a4 {[%clk
00:54:13]} {[%emt 00:03:37]} 23. Qxd6 {[%clk 01:14:02]} {[%emt 00:02:08]} Qxd6
{[%clk 00:54:27]} {[%emt 00:00:16]} 24. Rxd6 {[%clk 01:14:25]} {[%emt
00:00:07]} Ra8 {[%clk 00:54:38]} {[%emt 00:00:18]} 25. Rad1 {[%clk 01:13:29]}
{[%emt 00:01:28]} axb3 {[%clk 00:52:13]} {[%emt 00:02:54]} 26. Rd8+ {[%clk
01:12:59]} {[%emt 00:01:00]} Rxd8 {[%clk 00:52:29]} {[%emt 00:00:14]} 27. Rxd8+
{[%clk 01:13:25]} {[%emt 00:00:04]} Kg7 {[%clk 00:46:39]} {[%emt 00:06:20]} 28.
axb3 {[%clk 01:13:45]} {[%emt 00:00:11]} Bxe3 {[%clk 00:46:16]} {[%emt
00:00:51]} 29. fxe3 {[%clk 01:14:10]} {[%emt 00:00:07]} Ra5 {[%clk 00:46:09]}
{[%emt 00:00:37]} 30. Rb8 {[%clk 01:05:24]} {[%emt 00:09:13]} Ra1+ {[%clk
00:45:05]} {[%emt 00:01:36]} 31. Kf2 {[%clk 01:04:31]} {[%emt 00:01:21]} Ra2+
{[%clk 00:44:17]} {[%emt 00:01:20]} 32. Kf1 {[%clk 01:04:26]} {[%emt 00:00:32]}
Rb2 {[%clk 00:30:07]} {[%emt 00:14:43]} 33. Rxb4 {[%clk 00:56:44]} {[%emt
00:08:13]} Rxb3 {[%clk 00:30:07]} {[%emt 00:00:30]} 34. Rxb3 {[%clk 00:57:11]}
{[%emt 00:00:04]} Bxc4+ {[%clk 00:30:27]} {[%emt 00:00:08]} 35. Kf2 {[%clk
00:57:38]} {[%emt 00:00:03]} Bxb3 {[%clk 00:30:48]} {[%emt 00:00:08]} 36. Bf1
{[%clk 00:57:08]} {[%emt 00:01:00]} f6 {[%clk 00:27:05]} {[%emt 00:04:14]} 37.
Bb5 {[%clk 00:56:16]} {[%emt 00:01:19]} Bc2 {[%clk 00:25:35]} {[%emt 00:02:03]}
38. Bc6 {[%clk 00:56:12]} {[%emt 00:00:33]} Kf7 {[%clk 00:24:03]} {[%emt
00:02:03]} 39. Bd5+ {[%clk 00:56:11]} {[%emt 00:00:32]} Ke7 {[%clk 00:24:12]}
{[%emt 00:00:20]} 40. Kf3 {[%clk 00:46:26]} {[%emt 00:10:14]} Kd6 {[%clk
00:24:09]} {[%emt 00:00:34]} 41. Bg8 {[%clk 00:45:16]} {[%emt 00:01:40]} h6
{[%clk 00:23:45]} {[%emt 00:00:53]} 42. Bh7 {[%clk 00:43:53]} {[%emt 00:01:50]}
Bd1+ {[%clk 00:21:05]} {[%emt 00:03:14]} 43. Kf2 {[%clk 00:44:17]} {[%emt
00:00:06]} g5 {[%clk 00:20:23]} {[%emt 00:01:12]} 44. Bg8 {[%clk 00:40:30]}
{[%emt 00:04:16]} Bc2 {[%clk 00:15:46]} {[%emt 00:05:08]} 45. Kf3 {[%clk
00:37:13]} {[%emt 00:03:48]} Kc5 {[%clk 00:13:22]} {[%emt 00:02:53]} 46. Kg4
{[%clk 00:25:50]} {[%emt 00:11:52]} Bxe4 {[%clk 00:12:49]} {[%emt 00:01:04]} 47.
Kh5 {[%clk 00:25:52]} {[%emt 00:00:29]} gxh4 {[%clk 00:12:30]} {[%emt
00:00:48]} 48. gxh4 {[%clk 00:26:19]} {[%emt 00:00:03]} f5 {[%clk 00:12:09]}
{[%emt 00:00:51]} 49. Kxh6 {[%clk 00:17:20]} {[%emt 00:09:29]} f4 {[%clk
00:12:25]} {[%emt 00:00:13]} 50. exf4 {[%clk 00:17:46]} {[%emt 00:00:05]} exf4
{[%clk 00:12:49]} {[%emt 00:00:06]} 51. Kg5 {[%clk 00:17:36]} {[%emt 00:00:39]}
f3 {[%clk 00:13:07]} {[%emt 00:00:13]} 52. Be6 {[%clk 00:17:57]} {[%emt
00:00:08]} f2 {[%clk 00:07:16]} {[%emt 00:06:23]} 53. Bh3 {[%clk 00:18:22]}
{[%emt 00:00:05]} Bd3 {[%emt 00:00:38]} 1/2-1/2

[ePGN "0.1;DGT LiveChess/2.1"]

[Event "Open International Liffre 2019"]
[Site "Liffre"]
[Date "2019.10.19"]
[Round "1.3"]
[White "Enchev, Ivajlo"]
[Black "Bianchi, Guillaume"]
[Result "1-0"]
[TimeControl "1h30 + 30s/coup + 30 min /40 Coup"]
[WhiteTitle "GM"]
[WhiteElo "2488"]
[BlackElo "2147"]

1. d4 {[%clk 01:30:53]} {[%emt 00:00:05]} d5 {[%clk 01:30:50]} {[%emt
00:00:12]} 2. Nf3 {[%clk 01:31:13]} {[%emt 00:00:09]} Nf6 {[%clk 01:31:03]}
{[%emt 00:00:18]} 3. c4 {[%clk 01:31:28]} {[%emt 00:00:15]} c6 {[%clk
01:31:02]} {[%emt 00:00:31]} 4. Nc3 {[%clk 01:31:33]} {[%emt 00:00:24]} dxc4
{[%clk 01:30:49]} {[%emt 00:00:43]} 5. a4 {[%clk 01:30:53]} {[%emt 00:01:11]}
Bf5 {[%clk 01:30:36]} {[%emt 00:00:42]} 6. e3 {[%clk 01:30:52]} {[%emt
00:00:31]} e6 {[%clk 01:30:55]} {[%emt 00:00:12]} 7. Bxc4 {[%clk 01:31:17]}
{[%emt 00:00:05]} Bb4 {[%clk 01:30:59]} {[%emt 00:00:26]} 8. O-O {[%clk
01:30:51]} {[%emt 00:00:56]} Nbd7 {[%clk 01:30:52]} {[%emt 00:00:37]} 9. Qb3
{[%clk 01:29:00]} {[%emt 00:02:21]} a5 {[%clk 01:28:39]} {[%emt 00:02:43]} 10.
h3 {[%clk 01:26:24]} {[%emt 00:03:05]} h6 {[%clk 01:15:50]} {[%emt 00:13:19]}
11. Bd2 {[%clk 01:17:21]} {[%emt 00:09:33]} O-O {[%clk 01:11:56]} {[%emt
00:04:24]} 12. Rfe1 {[%clk 01:17:22]} {[%emt 00:00:29]} Bh7 {[%clk 01:10:49]}
{[%emt 00:01:37]} 13. Na2 {[%clk 01:13:40]} {[%emt 00:04:13]} Bxd2 {[%clk
01:04:19]} {[%emt 00:07:00]} 14. Nxd2 {[%clk 01:14:02]} {[%emt 00:00:07]} Qb6
{[%clk 01:04:20]} {[%emt 00:00:30]} 15. Nc3 {[%clk 01:11:07]} {[%emt 00:03:25]}
Nd5 {[%clk 00:58:01]} {[%emt 00:06:49]} 16. e4 {[%clk 01:08:25]} {[%emt
00:03:11]} Qxb3 {[%clk 00:53:40]} {[%emt 00:04:53]} 17. Bxb3 {[%clk 01:06:45]}
{[%emt 00:02:09]} Nb4 {[%clk 00:50:58]} {[%emt 00:03:12]} 18. Nc4 {[%clk
01:04:46]} {[%emt 00:02:28]} Rfd8 {[%clk 00:47:33]} {[%emt 00:03:56]} 19. Rad1
{[%clk 00:59:23]} {[%emt 00:05:52]} Kf8 {[%clk 00:41:58]} {[%emt 00:06:05]} 20.
f4 {[%clk 00:57:29]} {[%emt 00:02:25]} Ra6 {[%clk 00:37:49]} {[%emt 00:04:39]}
21. Nd6 {[%clk 00:56:16]} {[%emt 00:01:43]} Rb6 {[%clk 00:33:54]} {[%emt
00:04:25]} 22. f5 {[%clk 00:45:53]} {[%emt 00:10:53]} Nd3 {[%clk 00:24:40]}
{[%emt 00:09:45]} 23. Nxf7 {[%clk 00:45:22]} {[%emt 00:01:00]} Nxe1 {[%clk
00:23:57]} {[%emt 00:01:13]} 24. Nxd8 {[%clk 00:45:21]} {[%emt 00:00:31]} exf5
{[%clk 00:22:08]} {[%emt 00:02:19]} 25. Ne6+ {[%clk 00:41:35]} {[%emt
00:04:16]} Ke7 {[%clk 00:21:29]} {[%emt 00:01:09]} 26. Rxe1 {[%clk 00:41:28]}
{[%emt 00:00:36]} Rxb3 {[%clk 00:21:34]} {[%emt 00:00:27]} 27. exf5 {[%clk
00:41:52]} {[%emt 00:00:05]} Kf7 {[%clk 00:16:18]} {[%emt 00:05:46]} 28. g4
{[%clk 00:40:58]} {[%emt 00:01:24]} Rxb2 {[%clk 00:15:43]} {[%emt 00:01:06]} 29.
Ne4 {[%clk 00:40:18]} {[%emt 00:01:08]} Kg8 {[%clk 00:10:34]} {[%emt 00:05:40]}
30. N6c5 {[%clk 00:34:06]} {[%emt 00:06:42]} Nf8 {[%clk 00:05:37]} {[%emt
00:05:27]} 31. Nd6 {[%clk 00:33:57]} {[%emt 00:00:39]} b6 {[%clk 00:05:44]}
{[%emt 00:00:23]} 32. Ne6 {[%clk 00:34:07]} {[%emt 00:00:19]} Nd7 {[%clk
00:03:38]} {[%emt 00:02:37]} 33. Nxg7 {[%clk 00:33:35]} {[%emt 00:01:01]} Nf6
{[%clk 00:03:38]} {[%emt 00:00:31]} 34. Re7 {[%clk 00:32:50]} {[%emt 00:01:14]}
b5 {[%clk 00:02:35]} {[%emt 00:01:34]} 35. Ne6 {[%clk 00:32:56]} {[%emt
00:00:23]} Kh8 {[%clk 00:01:42]} {[%emt 00:01:24]} 36. Nf7 {[%clk 00:32:59]}
{[%emt 00:00:26]} Kg8 {[%clk 00:01:53]} {[%emt 00:00:20]} 37. Nxh6+ {[%clk
00:33:06]} {[%emt 00:00:22]} Kh8 {[%clk 00:02:11]} {[%emt 00:00:13]} 38. g5
{[%clk 00:31:56]} {[%emt 00:01:40]} bxa4 {[%clk 00:00:58]} {[%emt 00:01:43]} 39.
gxf6 {[%clk 00:31:38]} {[%emt 00:00:47]} a3 {[%clk 00:01:06]} {[%emt 00:00:23]}
40. Ng5 {[%clk 00:31:05]} {[%emt 00:01:01]} Bg8 {[%clk 00:01:14]} {[%emt
00:00:24]} 41. Rh7 {[%clk 00:31:09]} {[%emt 00:00:26]} 1-0

[ePGN "0.1;DGT LiveChess/2.1"]

[Event "Open International Liffre 2019"]
[Site "Liffre"]
[Date "2019.10.19"]
[Round "1.4"]
[White "Dehesdin, Wilfried"]
[Black "Guilleux, Fabien"]
[Result "0-1"]
[TimeControl "1h30 + 30s/coup + 30 min /40 Coup"]
[BlackTitle "IM"]
[WhiteElo "2112"]
[BlackElo "2433"]

1. d4 {[%clk 01:30:57]} {[%emt 00:00:03]} Nf6 {[%clk 01:30:41]} {[%emt
00:00:19]} 2. c4 {[%clk 01:31:18]} {[%emt 00:00:09]} g6 {[%clk 01:30:47]}
{[%emt 00:00:23]} 3. Nc3 {[%clk 01:31:42]} {[%emt 00:00:07]} d5 {[%clk
01:31:01]} {[%emt 00:00:17]} 4. e3 {[%clk 01:30:37]} {[%emt 00:01:34]} Bg7
{[%clk 01:30:49]} {[%emt 00:00:42]} 5. Qb3 {[%clk 01:30:48]} {[%emt 00:00:19]}
e6 {[%clk 01:14:33]} {[%emt 00:16:47]} 6. Qa3 {[%clk 01:24:30]} {[%emt
00:06:47]} Nc6 {[%clk 01:04:10]} {[%emt 00:10:53]} 7. Nf3 {[%clk 01:16:40]}
{[%emt 00:08:21]} Ne7 {[%clk 01:03:20]} {[%emt 00:01:20]} 8. Bd2 {[%clk
01:15:19]} {[%emt 00:01:50]} O-O {[%clk 01:02:09]} {[%emt 00:01:41]} 9. Ne5
{[%clk 01:11:33]} {[%emt 00:04:17]} b6 {[%clk 00:52:56]} {[%emt 00:09:43]} 10.
cxd5 {[%clk 01:08:04]} {[%emt 00:03:58]} exd5 {[%clk 00:53:03]} {[%emt
00:00:22]} 11. Ba6 {[%clk 01:07:15]} {[%emt 00:01:20]} Bxa6 {[%clk 00:51:01]}
{[%emt 00:02:31]} 12. Qxa6 {[%clk 01:07:38]} {[%emt 00:00:08]} c5 {[%clk
00:51:13]} {[%emt 00:00:18]} 13. O-O {[%clk 01:02:11]} {[%emt 00:05:56]} Nf5
{[%clk 00:41:51]} {[%emt 00:09:52]} 14. dxc5 {[%clk 00:53:55]} {[%emt
00:08:46]} bxc5 {[%clk 00:42:08]} {[%emt 00:00:13]} 15. Nf3 {[%clk 00:50:26]}
{[%emt 00:03:59]} d4 {[%clk 00:36:48]} {[%emt 00:05:50]} 16. exd4 {[%clk
00:46:37]} {[%emt 00:04:19]} cxd4 {[%clk 00:36:28]} {[%emt 00:00:51]} 17. Ne2
{[%clk 00:45:56]} {[%emt 00:01:11]} Ne4 {[%clk 00:33:48]} {[%emt 00:03:10]} 18.
Bb4 {[%clk 00:45:12]} {[%emt 00:01:14]} Re8 {[%clk 00:33:38]} {[%emt 00:00:39]}
19. Nf4 {[%clk 00:44:01]} {[%emt 00:01:42]} Rb8 {[%clk 00:22:23]} {[%emt
00:11:45]} 20. a3 {[%clk 00:42:23]} {[%emt 00:02:08]} g5 {[%clk 00:17:58]}
{[%emt 00:04:55]} 21. Nd3 {[%clk 00:36:22]} {[%emt 00:06:31]} g4 {[%clk
00:16:41]} {[%emt 00:01:46]} 22. Nd2 {[%clk 00:36:49]} {[%emt 00:00:05]} Rxb4
{[%clk 00:16:14]} {[%emt 00:00:57]} 23. Nxe4 {[%clk 00:25:44]} {[%emt
00:11:34]} Rb6 {[%clk 00:12:17]} {[%emt 00:04:26]} 24. Qa5 {[%clk 00:26:04]}
{[%emt 00:00:11]} Nh4 {[%clk 00:11:31]} {[%emt 00:01:16]} 25. Rfe1 {[%clk
00:03:07]} {[%emt 00:23:27]} Qa8 {[%clk 00:10:12]} {[%emt 00:01:49]} 26. Qg5
{[%clk 00:02:39]} {[%emt 00:00:58]} Nxg2 {[%clk 00:09:47]} {[%emt 00:00:54]} 27.
Kxg2 {[%clk 00:02:10]} {[%emt 00:01:00]} Rxe4 {[%clk 00:10:04]} {[%emt
00:00:13]} 28. Kg1 {[%clk 00:02:36]} {[%emt 00:00:04]} h6 {[%clk 00:07:32]}
{[%emt 00:03:02]} 29. Qf5 {[%clk 00:02:18]} {[%emt 00:00:48]} Rxe1+ {[%clk
00:06:03]} {[%emt 00:01:58]} 30. Rxe1 {[%clk 00:02:43]} {[%emt 00:00:06]} Rf6
{[%clk 00:06:23]} {[%emt 00:00:09]} 31. Qd7 {[%clk 00:02:28]} {[%emt 00:00:45]}
Qf3 {[%clk 00:06:25]} {[%emt 00:00:28]} 32. Qe8+ {[%clk 00:02:57]} {[%emt
00:00:02]} Kh7 {[%clk 00:06:13]} {[%emt 00:00:42]} 33. Qe4 {[%clk 00:03:24]}
{[%emt 00:00:03]} Qxe4 {[%clk 00:06:00]} {[%emt 00:00:43]} 34. Rxe4 {[%clk
00:03:50]} {[%emt 00:00:04]} Rf3 {[%clk 00:05:28]} {[%emt 00:01:01]} 35. Nc5
{[%clk 00:02:41]} {[%emt 00:01:41]} d3 {[%clk 00:05:36]} {[%emt 00:00:21]} 36.
Nb3 {[%clk 00:02:47]} {[%emt 00:00:25]} Bxb2 {[%clk 00:04:47]} {[%emt
00:01:18]} 37. Re7 {[%clk 00:02:19]} {[%emt 00:00:58]} Bd4 {[%clk 00:03:46]}
{[%emt 00:01:30]} 38. Rd7 {[%clk 00:01:18]} {[%emt 00:01:32]} Bxf2+ {[%clk
00:03:55]} {[%emt 00:00:21]} 39. Kg2 {[%clk 00:01:46]} {[%emt 00:00:02]} Bh4
{[%clk 00:01:53]} {[%emt 00:02:31]} 40. Rxa7 {[%clk 00:01:08]} {[%emt
00:01:09]} Rf2+ {[%clk 00:01:10]} {[%emt 00:01:12]} 41. Kg1 {[%clk 00:01:24]}
{[%emt 00:00:15]} Rb2 {[%clk 00:01:03]} {[%emt 00:00:36]} 42. Rxf7 {[%clk
00:30:19]} {[%emt 00:01:35]} Kg6 {[%clk 00:31:16]} {[%emt 00:00:17]} 43. Rb7
{[%clk 00:30:46]} {[%emt 00:00:03]} d2 {[%clk 00:31:28]} {[%emt 00:00:19]} 0-1

[ePGN "0.1;DGT LiveChess/2.1"]

[Event "Open International Liffre 2019"]
[Site "Liffre"]
[Date "2019.10.20"]
[Round "2.1"]
[White "Naumkin, Igor"]
[Black "Nikolov, Momchil"]
[Result "1/2-1/2"]
[TimeControl "1h30 + 30s/coup + 30 min /40 Coup"]
[WhiteTitle "GM"]
[BlackTitle "GM"]
[WhiteElo "2385"]
[BlackElo "2557"]

1. d4 {[%clk 01:29:57]} {[%emt 00:01:02]} Nf6 {[%clk 01:30:48]} {[%emt
00:00:13]} 2. c4 {[%clk 01:30:19]} {[%emt 00:00:08]} e6 {[%clk 01:31:13]}
{[%emt 00:00:05]} 3. Nf3 {[%clk 01:30:36]} {[%emt 00:00:13]} d5 {[%clk
01:31:34]} {[%emt 00:00:09]} 4. Nc3 {[%clk 01:30:55]} {[%emt 00:00:11]} c5
{[%clk 01:31:42]} {[%emt 00:00:22]} 5. cxd5 {[%clk 01:30:46]} {[%emt 00:00:38]}
Nxd5 {[%clk 01:32:05]} {[%emt 00:00:08]} 6. e4 {[%clk 01:31:08]} {[%emt
00:00:07]} Nxc3 {[%clk 01:32:29]} {[%emt 00:00:07]} 7. bxc3 {[%clk 01:31:32]}
{[%emt 00:00:06]} cxd4 {[%clk 01:32:53]} {[%emt 00:00:06]} 8. cxd4 {[%clk
01:31:57]} {[%emt 00:00:05]} Bb4+ {[%clk 01:33:15]} {[%emt 00:00:08]} 9. Bd2
{[%clk 01:32:20]} {[%emt 00:00:06]} Bxd2+ {[%clk 01:33:28]} {[%emt 00:00:17]}
10. Qxd2 {[%clk 01:32:44]} {[%emt 00:00:06]} O-O {[%clk 01:33:53]} {[%emt
00:00:07]} 11. Bc4 {[%clk 01:32:56]} {[%emt 00:00:16]} Nd7 {[%clk 01:33:31]}
{[%emt 00:00:52]} 12. O-O {[%clk 01:32:03]} {[%emt 00:01:22]} b6 {[%clk
01:33:57]} {[%emt 00:00:06]} 13. Rad1 {[%clk 01:31:13]} {[%emt 00:01:19]} Bb7
{[%clk 01:34:18]} {[%emt 00:00:11]} 14. Rfe1 {[%clk 01:30:42]} {[%emt
00:00:59]} Rc8 {[%clk 01:34:40]} {[%emt 00:00:10]} 15. Bd3 {[%clk 01:29:19]}
{[%emt 00:01:51]} h6 {[%clk 01:33:40]} {[%emt 00:01:30]} 16. h3 {[%clk
01:28:30]} {[%emt 00:01:18]} Re8 {[%clk 01:23:13]} {[%emt 00:10:59]} 17. Bb1
{[%clk 01:21:59]} {[%emt 00:07:00]} Qc7 {[%clk 01:19:31]} {[%emt 00:04:13]} 18.
Rc1 {[%clk 01:16:35]} {[%emt 00:05:53]} Qd6 {[%clk 01:16:28]} {[%emt 00:03:34]}
19. Rcd1 {[%clk 01:15:26]} {[%emt 00:01:38]} Rc4 {[%clk 01:06:17]} {[%emt
00:10:41]} 20. Bd3 {[%clk 01:04:26]} {[%emt 00:11:30]} Rc7 {[%clk 01:04:05]}
{[%emt 00:02:43]} 21. Bb1 {[%clk 01:00:18]} {[%emt 00:04:37]} b5 {[%clk
00:56:12]} {[%emt 00:08:23]} 22. Nh2 {[%clk 00:53:57]} {[%emt 00:06:50]} b4
{[%clk 00:52:35]} {[%emt 00:04:09]} 23. Re3 {[%clk 00:48:49]} {[%emt 00:05:36]}
Rec8 {[%clk 00:45:51]} {[%emt 00:07:15]} 24. e5 {[%clk 00:45:24]} {[%emt
00:03:55]} Qf8 {[%clk 00:27:40]} {[%emt 00:18:41]} 25. Qd3 {[%clk 00:37:44]}
{[%emt 00:08:10]} g6 {[%clk 00:27:38]} {[%emt 00:00:33]} 26. Qd2 {[%clk
00:35:32]} {[%emt 00:02:41]} Rc3 {[%clk 00:25:52]} {[%emt 00:02:17]} 27. Bd3
{[%clk 00:33:46]} {[%emt 00:02:15]} Bd5 {[%clk 00:14:13]} {[%emt 00:12:10]}
1/2-1/2

[ePGN "0.1;DGT LiveChess/2.1"]